[Event "*** Titled Tuesday Blitz"]
[Site "Chess.com"]
[Date "2019.10.01"]
[Round "2"]
[White "51616516516"]
[Black "sergeikim"]
[Result "0-1"]
[WhiteElo "2235"]
[BlackElo "2490"]
[TimeControl "180+2"]
[EndTime "13:22:04 PDT"]
[Termination "sergeikim won on time"]

1. d4 {[%clk 0:03:01.9]} 1... Nf6 {[%clk 0:03:00]} 2. c4 {[%clk 0:03:02]} 2...
g6 {[%clk 0:03:00.7]} 3. g3 {[%clk 0:03:01.3]} 3... Bg7 {[%clk 0:03:01.9]} 4.
Bg2 {[%clk 0:03:02.7]} 4... O-O {[%clk 0:03:02.5]} 5. Nf3 {[%clk 0:03:03.6]}
5... d6 {[%clk 0:03:03.7]} 6. O-O {[%clk 0:03:04.5]} 6... Nbd7 {[%clk
0:03:04.5]} 7. Nc3 {[%clk 0:03:05.5]} 7... e5 {[%clk 0:03:05.1]} 8. e4 {[%clk
0:03:04.5]} 8... exd4 {[%clk 0:03:05.7]} 9. Nxd4 {[%clk 0:03:04.9]} 9... Re8
{[%clk 0:03:06.8]} 10. h3 {[%clk 0:02:56.8]} 10... Nc5 {[%clk 0:03:07.3]} 11.
Re1 {[%clk 0:02:50.6]} 11... c6 {[%clk 0:03:08.2]} 12. Qc2 {[%clk 0:02:14.8]}
12... a5 {[%clk 0:03:07.8]} 13. Be3 {[%clk 0:02:13.9]} 13... a4 {[%clk
0:03:07.7]} 14. b4 {[%clk 0:02:10.5]} 14... axb3 {[%clk 0:03:07.6]} 15. axb3
{[%clk 0:02:11.3]} 15... Rxa1 {[%clk 0:03:07.7]} 16. Rxa1 {[%clk 0:02:13.2]}
16... Nfd7 {[%clk 0:03:08]} 17. Rd1 {[%clk 0:01:43.3]} 17... Qb6 {[%clk
0:03:02.3]} 18. Rb1 {[%clk 0:01:25.6]} 18... Qb4 {[%clk 0:02:50]} 19. Na2 {[%clk
0:01:19.1]} 19... Qa3 {[%clk 0:02:50.6]} 20. b4 {[%clk 0:01:12.2]} 20... Ne6
{[%clk 0:02:49.5]} 21. Ne2 {[%clk 0:01:00.8]} 21... Ne5 {[%clk 0:02:43.6]} 22.
Kh2 {[%clk 0:00:46.2]} 22... h6 {[%clk 0:02:32.6]} 23. Bc1 {[%clk 0:00:44.2]}
23... Qd3 {[%clk 0:02:30.1]} 24. Qxd3 {[%clk 0:00:41.1]} 24... Nxd3 {[%clk
0:02:30.9]} 25. Be3 {[%clk 0:00:41.5]} 25... Ng5 {[%clk 0:02:24.8]} 26. Nac3
{[%clk 0:00:40.6]} 26... Ne5 {[%clk 0:02:14.3]} 27. c5 {[%clk 0:00:36.5]} 27...
dxc5 {[%clk 0:02:14.5]} 28. Bxc5 {[%clk 0:00:29]} 28... Nef3+ {[%clk 0:02:10.3]}
29. Bxf3 {[%clk 0:00:21.6]} 29... Nxf3+ {[%clk 0:02:11]} 30. Kg2 {[%clk
0:00:23.5]} 30... Nd2 {[%clk 0:02:10.6]} 31. Rd1 {[%clk 0:00:22.2]} 31... Nc4
{[%clk 0:02:06]} 32. g4 {[%clk 0:00:17.2]} 32... f5 {[%clk 0:01:58.3]} 33. f3
{[%clk 0:00:09.8]} 33... fxg4 {[%clk 0:01:51.7]} 34. hxg4 {[%clk 0:00:09.8]}
34... Bf8 {[%clk 0:01:51.2]} 35. Kf2 {[%clk 0:00:05.8]} 35... Bg7 {[%clk
0:01:44.8]} 36. Na4 {[%clk 0:00:03.9]} 36... Be6 {[%clk 0:01:42.1]} 37. Nb6
{[%clk 0:00:04.1]} 37... Nxb6 {[%clk 0:01:41.5]} 38. Bxb6 {[%clk 0:00:06]} 38...
Bf8 {[%clk 0:01:36.8]} 39. Nf4 {[%clk 0:00:06.3]} 39... Bf7 {[%clk 0:01:36.4]}
40. Bc5 {[%clk 0:00:06.9]} 40... Bg7 {[%clk 0:01:36.6]} 41. Rd7 {[%clk
0:00:06.3]} 41... b5 {[%clk 0:01:29.3]} 0-1

[Event "*** Titled Tuesday Blitz"]
[Site "Chess.com"]
[Date "2019.10.01"]
[Round "2"]
[White "M1711"]
[Black "severomorskij"]
[Result "0-1"]
[WhiteElo "2538"]
[BlackElo "2838"]
[TimeControl "180+2"]
[EndTime "13:22:06 PDT"]
[Termination "severomorskij won on time"]

1. e4 {[%clk 0:03:01.9]} 1... c5 {[%clk 0:02:59.6]} 2. Nf3 {[%clk 0:03:02]} 2...
Nc6 {[%clk 0:03:00.6]} 3. Nc3 {[%clk 0:02:57]} 3... Nf6 {[%clk 0:03:00.7]} 4.
Bb5 {[%clk 0:02:56]} 4... Qc7 {[%clk 0:03:01.8]} 5. O-O {[%clk 0:02:54.8]} 5...
Nd4 {[%clk 0:03:02.8]} 6. Ba4 {[%clk 0:01:51.1]} 6... a6 {[%clk 0:02:25.7]} 7.
Nxd4 {[%clk 0:01:42.8]} 7... cxd4 {[%clk 0:02:26.3]} 8. Nd5 {[%clk 0:01:43.6]}
8... Nxd5 {[%clk 0:02:13.8]} 9. exd5 {[%clk 0:01:45.5]} 9... g6 {[%clk
0:02:08.2]} 10. d3 {[%clk 0:01:43.1]} 10... Bg7 {[%clk 0:02:08.8]} 11. Qf3
{[%clk 0:01:31.1]} 11... O-O {[%clk 0:02:06]} 12. h4 {[%clk 0:01:25.4]} 12... e5
{[%clk 0:02:01.2]} 13. h5 {[%clk 0:01:18.1]} 13... d6 {[%clk 0:02:00.4]} 14. Bd2
{[%clk 0:00:56.1]} 14... Bd7 {[%clk 0:01:41.9]} 15. Bxd7 {[%clk 0:00:48]} 15...
Qxd7 {[%clk 0:01:42.5]} 16. c4 {[%clk 0:00:48.9]} 16... f5 {[%clk 0:01:36.1]}
17. hxg6 {[%clk 0:00:47.7]} 17... hxg6 {[%clk 0:01:36.7]} 18. b4 {[%clk
0:00:40.7]} 18... Rae8 {[%clk 0:01:34.9]} 19. Qg3 {[%clk 0:00:34.8]} 19... Kf7
{[%clk 0:01:25.8]} 20. f3 {[%clk 0:00:17.6]} 20... Rh8 {[%clk 0:01:20.9]} 21. a4
{[%clk 0:00:15.7]} 21... Bf6 {[%clk 0:01:15.1]} 22. Qf2 {[%clk 0:00:06.3]} 22...
f4 {[%clk 0:01:12]} 23. g4 {[%clk 0:00:04.1]} 23... Rh3 {[%clk 0:01:06.2]} 24.
Qe2 {[%clk 0:00:05.6]} 24... Reh8 {[%clk 0:01:06]} 25. Kf2 {[%clk 0:00:02.6]}
25... Rh2+ {[%clk 0:01:05.4]} 26. Ke1 {[%clk 0:00:03.8]} 26... Rxe2+ {[%clk
0:01:06.1]} 27. Kxe2 {[%clk 0:00:05.7]} 27... Rh2+ {[%clk 0:01:05.3]} 28. Kd1
{[%clk 0:00:06.9]} 28... Bh4 {[%clk 0:00:58.3]} 29. Kc2 {[%clk 0:00:05.7]} 29...
Bf2 {[%clk 0:00:58.9]} 30. Kb3 {[%clk 0:00:03.9]} 30... Be3 {[%clk 0:00:58.2]}
31. Be1 {[%clk 0:00:05.1]} 31... Qc8 {[%clk 0:00:54.2]} 32. b5 {[%clk
0:00:05.5]} 32... Qh8 {[%clk 0:00:45.3]} 33. Kb4 {[%clk 0:00:02.9]} 33... Qh3
{[%clk 0:00:42.8]} 0-1

[Event "*** Titled Tuesday Blitz"]
[Site "Chess.com"]
[Date "2019.10.01"]
[Round "2"]
[White "vovachesss"]
[Black "ExploringChess"]
[Result "0-1"]
[WhiteElo "2536"]
[BlackElo "2881"]
[TimeControl "180+2"]
[EndTime "13:22:06 PDT"]
[Termination "ExploringChess won by resignation"]

1. e4 {[%clk 0:03:01.9]} 1... e6 {[%clk 0:02:59]} 2. Qe2 {[%clk 0:03:03]} 2...
e5 {[%clk 0:02:57.5]} 3. Nf3 {[%clk 0:03:02.8]} 3... Nc6 {[%clk 0:02:58.6]} 4.
g3 {[%clk 0:03:03.9]} 4... Bc5 {[%clk 0:02:57.1]} 5. Bg2 {[%clk 0:03:05.2]} 5...
Nf6 {[%clk 0:02:54.9]} 6. O-O {[%clk 0:03:06.5]} 6... O-O {[%clk 0:02:54]} 7. d3
{[%clk 0:03:06.3]} 7... h6 {[%clk 0:02:54.5]} 8. c3 {[%clk 0:03:04.9]} 8... a5
{[%clk 0:02:55]} 9. Be3 {[%clk 0:02:55.5]} 9... Bxe3 {[%clk 0:02:47.6]} 10. fxe3
{[%clk 0:02:57.4]} 10... d6 {[%clk 0:02:45.2]} 11. Nh4 {[%clk 0:02:55.3]} 11...
Bg4 {[%clk 0:02:43.3]} 12. Qf2 {[%clk 0:02:55.7]} 12... Be6 {[%clk 0:02:37.5]}
13. Nd2 {[%clk 0:02:52.4]} 13... b5 {[%clk 0:02:32.4]} 14. Nf5 {[%clk
0:02:52.2]} 14... Bxf5 {[%clk 0:02:28.4]} 15. Qxf5 {[%clk 0:02:24.8]} 15... a4
{[%clk 0:02:21.3]} 16. a3 {[%clk 0:02:20.8]} 16... Ne7 {[%clk 0:02:12.2]} 17.
Qh3 {[%clk 0:02:13.1]} 17... Ng6 {[%clk 0:02:09.5]} 18. Rf5 {[%clk 0:02:06.8]}
18... Nh7 {[%clk 0:02:04.4]} 19. Raf1 {[%clk 0:02:04.6]} 19... Ng5 {[%clk
0:02:00.2]} 20. Qg4 {[%clk 0:02:05.3]} 20... Nh7 {[%clk 0:01:57.2]} 21. Nf3
{[%clk 0:01:53.9]} 21... Ne7 {[%clk 0:01:48]} 22. Nh4 {[%clk 0:01:44.2]} 22...
Nxf5 {[%clk 0:01:41.9]} 23. Nxf5 {[%clk 0:01:42.9]} 23... Qg5 {[%clk 0:01:42.8]}
24. Qf3 {[%clk 0:01:35]} 24... g6 {[%clk 0:01:38.7]} 25. h4 {[%clk 0:01:33.6]}
25... Qd8 {[%clk 0:01:38.2]} 26. Nxh6+ {[%clk 0:01:34.4]} 26... Kg7 {[%clk
0:01:39.6]} 27. Ng4 {[%clk 0:01:12.9]} 27... Ra6 {[%clk 0:01:39.2]} 28. Nf2
{[%clk 0:01:06]} 28... c5 {[%clk 0:01:36.9]} 29. Bh3 {[%clk 0:00:53.1]} 29...
Rb6 {[%clk 0:01:33.2]} 30. Kg2 {[%clk 0:00:44.2]} 30... b4 {[%clk 0:01:31.8]}
31. cxb4 {[%clk 0:00:43.7]} 31... cxb4 {[%clk 0:01:33.7]} 32. h5 {[%clk
0:00:44.2]} 32... Ng5 {[%clk 0:01:28.6]} 33. Qg4 {[%clk 0:00:42.9]} 33... bxa3
{[%clk 0:01:25.7]} 34. bxa3 {[%clk 0:00:43.9]} 34... Rb2 {[%clk 0:01:23.8]} 35.
Kg1 {[%clk 0:00:32.5]} 35... Rh8 {[%clk 0:01:20.1]} 36. hxg6 {[%clk 0:00:08.9]}
36... Rxf2 {[%clk 0:01:20.4]} 37. Kxf2 {[%clk 0:00:04.6]} 37... Nxh3+ {[%clk
0:01:20.3]} 38. Ke2 {[%clk 0:00:04]} 38... fxg6 {[%clk 0:01:17.7]} 39. Qe6
{[%clk 0:00:05.3]} 39... Ng5 {[%clk 0:01:14.1]} 40. Qd5 {[%clk 0:00:05.5]} 40...
Rh2+ {[%clk 0:01:11.1]} 41. Kd1 {[%clk 0:00:06.7]} 41... Qb6 {[%clk 0:01:08.8]}
0-1

[Event "*** Titled Tuesday Blitz"]
[Site "Chess.com"]
[Date "2019.10.01"]
[Round "2"]
[White "12teen"]
[Black "LastHeroJr"]
[Result "0-1"]
[WhiteElo "2721"]
[BlackElo "2517"]
[TimeControl "180+2"]
[EndTime "13:22:10 PDT"]
[Termination "LastHeroJr won by checkmate"]

1. e4 {[%clk 0:03:01.9]} 1... e5 {[%clk 0:03:00.6]} 2. Nc3 {[%clk 0:03:03.1]}
2... Nf6 {[%clk 0:03:01.3]} 3. g3 {[%clk 0:03:04.6]} 3... Nc6 {[%clk 0:03:00.8]}
4. Bg2 {[%clk 0:03:06.1]} 4... Bc5 {[%clk 0:03:02.1]} 5. d3 {[%clk 0:03:07.1]}
5... a6 {[%clk 0:03:02.5]} 6. f4 {[%clk 0:03:08.6]} 6... exf4 {[%clk 0:02:45.7]}
7. gxf4 {[%clk 0:03:07.8]} 7... d5 {[%clk 0:02:20.8]} 8. h3 {[%clk 0:02:21.9]}
8... dxe4 {[%clk 0:02:05.2]} 9. dxe4 {[%clk 0:02:21.1]} 9... Qxd1+ {[%clk
0:02:03.3]} 10. Kxd1 {[%clk 0:02:10.8]} 10... Be6 {[%clk 0:01:53.5]} 11. e5
{[%clk 0:01:52.3]} 11... O-O-O+ {[%clk 0:01:54]} 12. Bd2 {[%clk 0:01:35]} 12...
Be3 {[%clk 0:01:49.2]} 13. Nf3 {[%clk 0:01:35.6]} 13... Nh5 {[%clk 0:01:50]} 14.
Re1 {[%clk 0:01:15.7]} 14... Bxd2 {[%clk 0:01:36.5]} 15. Nxd2 {[%clk 0:01:17.6]}
15... Nxf4 {[%clk 0:01:37.8]} 16. Bxc6 {[%clk 0:01:18.9]} 16... bxc6 {[%clk
0:01:39.6]} 17. h4 {[%clk 0:01:13.1]} 17... Ng2 {[%clk 0:01:38.9]} 18. Re4
{[%clk 0:00:44.7]} 18... Bf5 {[%clk 0:01:32.7]} 19. Ra4 {[%clk 0:00:46]} 19...
Ne3+ {[%clk 0:01:31.8]} 20. Ke2 {[%clk 0:00:47.4]} 20... Nxc2 {[%clk 0:01:29.8]}
21. Rg1 {[%clk 0:00:41.5]} 21... Rhe8 {[%clk 0:01:24.1]} 22. Nf3 {[%clk
0:00:37.1]} 22... c5 {[%clk 0:01:07.9]} 23. Rxg7 {[%clk 0:00:32.9]} 23... Nd4+
{[%clk 0:01:01.6]} 24. Kf2 {[%clk 0:00:34.3]} 24... Bg6 {[%clk 0:00:45.6]} 25.
Rxa6 {[%clk 0:00:29.1]} 25... Ne6 {[%clk 0:00:40.9]} 26. Rxg6 {[%clk 0:00:21.4]}
26... hxg6 {[%clk 0:00:37.2]} 27. Ne4 {[%clk 0:00:22.9]} 27... Kb7 {[%clk
0:00:33.3]} 28. Ra3 {[%clk 0:00:23.3]} 28... Ra8 {[%clk 0:00:34]} 29. Rb3+
{[%clk 0:00:24.8]} 29... Kc6 {[%clk 0:00:35.4]} 30. a3 {[%clk 0:00:12.6]} 30...
Reb8 {[%clk 0:00:36.4]} 31. Rc3 {[%clk 0:00:12.6]} 31... Rxb2+ {[%clk
0:00:37.3]} 32. Ke3 {[%clk 0:00:12.1]} 32... Ra2 {[%clk 0:00:37.8]} 33. Nd4+
{[%clk 0:00:09.3]} 33... Nxd4 {[%clk 0:00:29.7]} 34. Rxc5+ {[%clk 0:00:10.8]}
34... Kb6 {[%clk 0:00:31.3]} 35. Kxd4 {[%clk 0:00:12]} 35... R2xa3 {[%clk
0:00:29.1]} 36. Rc1 {[%clk 0:00:11.7]} 36... R8a4+ {[%clk 0:00:28.4]} 37. Kd5
{[%clk 0:00:13.1]} 37... Rd3# {[%clk 0:00:28.9]} 0-1

[Event "*** Titled Tuesday Blitz"]
[Site "Chess.com"]
[Date "2019.10.01"]
[Round "2"]
[White "Zarikovs1999"]
[Black "chesstatour"]
[Result "1-0"]
[WhiteElo "2415"]
[BlackElo "2029"]
[TimeControl "180+2"]
[EndTime "13:22:12 PDT"]
[Termination "Zarikovs1999 won on time"]

1. e4 {[%clk 0:03:01.9]} 1... c6 {[%clk 0:03:00.4]} 2. d4 {[%clk 0:03:02.3]}
2... d5 {[%clk 0:03:01.8]} 3. Nc3 {[%clk 0:03:04.2]} 3... dxe4 {[%clk
0:03:02.8]} 4. Nxe4 {[%clk 0:03:06.1]} 4... Nf6 {[%clk 0:03:04]} 5. Ng3 {[%clk
0:02:56.3]} 5... h5 {[%clk 0:03:04.3]} 6. h4 {[%clk 0:02:56.7]} 6... Bg4 {[%clk
0:03:03.2]} 7. Be2 {[%clk 0:02:57.3]} 7... e6 {[%clk 0:03:03.4]} 8. c4 {[%clk
0:02:55.8]} 8... Qc7 {[%clk 0:02:51.5]} 9. Nf3 {[%clk 0:02:50.9]} 9... Nbd7
{[%clk 0:02:49.5]} 10. Be3 {[%clk 0:02:48.8]} 10... Bd6 {[%clk 0:02:29.6]} 11.
Nf1 {[%clk 0:02:46.5]} 11... Ne4 {[%clk 0:02:03.7]} 12. Qc2 {[%clk 0:02:39.8]}
12... Bb4+ {[%clk 0:01:50.6]} 13. N1d2 {[%clk 0:02:33.4]} 13... Nxd2 {[%clk
0:01:42.2]} 14. Bxd2 {[%clk 0:02:30.6]} 14... Qa5 {[%clk 0:01:18.3]} 15. a3
{[%clk 0:02:26.6]} 15... Bxd2+ {[%clk 0:01:14.2]} 16. Qxd2 {[%clk 0:02:28.5]}
16... Qxd2+ {[%clk 0:01:13.6]} 17. Kxd2 {[%clk 0:02:30.4]} 17... O-O {[%clk
0:01:05.7]} 18. Ke3 {[%clk 0:02:19.3]} 18... Rfe8 {[%clk 0:01:01.1]} 19. Ne5
{[%clk 0:02:14]} 19... Nxe5 {[%clk 0:00:55.7]} 20. dxe5 {[%clk 0:02:14.3]} 20...
Bxe2 {[%clk 0:00:53.7]} 21. Kxe2 {[%clk 0:02:16.2]} 21... Red8 {[%clk
0:00:53.1]} 22. Rhd1 {[%clk 0:02:17.7]} 22... Kf8 {[%clk 0:00:54.6]} 23. Rd6
{[%clk 0:02:04.5]} 23... Rxd6 {[%clk 0:00:48]} 24. exd6 {[%clk 0:02:05.2]} 24...
c5 {[%clk 0:00:43.3]} 25. b4 {[%clk 0:02:05]} 25... b6 {[%clk 0:00:40.6]} 26.
bxc5 {[%clk 0:02:05.4]} 26... bxc5 {[%clk 0:00:41.2]} 27. Rb1 {[%clk 0:02:07.3]}
27... Rd8 {[%clk 0:00:35.1]} 28. Rb5 {[%clk 0:01:59.6]} 28... Rxd6 {[%clk
0:00:33.4]} 29. Rxc5 {[%clk 0:02:01.1]} 29... Ra6 {[%clk 0:00:30.5]} 30. Rxh5
{[%clk 0:01:58.1]} 30... Rxa3 {[%clk 0:00:28.6]} 31. Rb5 {[%clk 0:01:58.8]}
31... g6 {[%clk 0:00:19.4]} 32. g3 {[%clk 0:01:52.4]} 32... Ke7 {[%clk
0:00:17.9]} 33. c5 {[%clk 0:01:49.1]} 33... a5 {[%clk 0:00:15.8]} 34. g4 {[%clk
0:01:41.9]} 34... Kf6 {[%clk 0:00:16.4]} 35. g5+ {[%clk 0:01:39.8]} 35... Ke5
{[%clk 0:00:13.3]} 36. Rb7 {[%clk 0:01:33.3]} 36... Kd5 {[%clk 0:00:11.1]} 37.
Rxf7 {[%clk 0:01:34.7]} 37... Kxc5 {[%clk 0:00:11.5]} 38. h5 {[%clk 0:01:36.2]}
38... gxh5 {[%clk 0:00:04.9]} 39. g6 {[%clk 0:01:37.7]} 39... Ra2+ {[%clk
0:00:05.5]} 40. Ke3 {[%clk 0:01:38.8]} 40... Ra3+ {[%clk 0:00:06.4]} 41. Ke2
{[%clk 0:01:38.8]} 41... Ra2+ {[%clk 0:00:07.5]} 42. Kf1 {[%clk 0:01:40.4]}
42... Ra4 {[%clk 0:00:06.7]} 43. f3 {[%clk 0:01:30.7]} 43... Ra1+ {[%clk
0:00:03]} 44. Kf2 {[%clk 0:01:31.4]} 44... Ra2+ {[%clk 0:00:04.3]} 45. Kg3
{[%clk 0:01:22.2]} 45... Ra1 {[%clk 0:00:03.4]} 46. Kh4 {[%clk 0:01:13.6]} 1-0

[Event "*** Titled Tuesday Blitz"]
[Site "Chess.com"]
[Date "2019.10.01"]
[Round "2"]
[White "VerdeNotte"]
[Black "Stormeman100100"]
[Result "1-0"]
[WhiteElo "2781"]
[BlackElo "2415"]
[TimeControl "180+2"]
[EndTime "13:22:14 PDT"]
[Termination "VerdeNotte won by resignation"]

1. c4 {[%clk 0:03:01.9]} 1... e6 {[%clk 0:02:58.7]} 2. g3 {[%clk 0:03:02.7]}
2... d5 {[%clk 0:02:58.2]} 3. Bg2 {[%clk 0:03:04.2]} 3... Nf6 {[%clk 0:02:59.7]}
4. Nf3 {[%clk 0:03:05.4]} 4... Be7 {[%clk 0:03:00.7]} 5. O-O {[%clk 0:03:06.6]}
5... O-O {[%clk 0:03:01.9]} 6. b3 {[%clk 0:03:07.3]} 6... b6 {[%clk 0:03:02.8]}
7. Bb2 {[%clk 0:03:06.2]} 7... Bb7 {[%clk 0:03:04.1]} 8. Nc3 {[%clk 0:03:06.3]}
8... c5 {[%clk 0:03:05.1]} 9. cxd5 {[%clk 0:03:06.3]} 9... exd5 {[%clk
0:03:00.7]} 10. d4 {[%clk 0:03:07]} 10... Nbd7 {[%clk 0:02:55.9]} 11. Nh4 {[%clk
0:03:04.3]} 11... Re8 {[%clk 0:02:37.7]} 12. dxc5 {[%clk 0:03:01.9]} 12... Nxc5
{[%clk 0:02:18.7]} 13. Nf5 {[%clk 0:02:59.3]} 13... Bf8 {[%clk 0:02:19.8]} 14.
Nb5 {[%clk 0:02:58.1]} 14... Ba6 {[%clk 0:01:57.8]} 15. a4 {[%clk 0:02:46.3]}
15... Nfe4 {[%clk 0:01:51.3]} 16. Qd4 {[%clk 0:02:17.8]} 16... f6 {[%clk
0:01:27.5]} 17. Rad1 {[%clk 0:02:12.3]} 17... Nxb3 {[%clk 0:01:19]} 18. Qxd5+
{[%clk 0:02:10.7]} 18... Qxd5 {[%clk 0:01:19.3]} 19. Rxd5 {[%clk 0:02:12.6]}
19... Nec5 {[%clk 0:01:03.2]} 20. Nc7 {[%clk 0:02:10.6]} 20... Bxe2 {[%clk
0:01:00.2]} 21. Nxa8 {[%clk 0:02:07.8]} 21... Bxf1 {[%clk 0:00:57.3]} 22. Kxf1
{[%clk 0:02:09.4]} 22... Rxa8 {[%clk 0:00:55.1]} 23. Rxc5 {[%clk 0:02:09.1]}
23... Nxc5 {[%clk 0:00:57]} 24. Bxa8 {[%clk 0:02:08.8]} 24... Nxa4 {[%clk
0:00:58.2]} 25. Bd5+ {[%clk 0:02:08.1]} 25... Kh8 {[%clk 0:00:59.7]} 26. Ba1
{[%clk 0:01:58.2]} 26... b5 {[%clk 0:00:59]} 27. Ke2 {[%clk 0:01:54.8]} 27... b4
{[%clk 0:00:59.4]} 28. Kd3 {[%clk 0:01:54.3]} 28... Nc5+ {[%clk 0:01:00.2]} 29.
Kc4 {[%clk 0:01:53.2]} 29... a5 {[%clk 0:01:01.1]} 30. Kb5 {[%clk 0:01:50.7]}
30... b3 {[%clk 0:00:59.3]} 31. Kxa5 {[%clk 0:01:47.9]} 31... Nd3 {[%clk
0:00:46.9]} 32. Bxb3 {[%clk 0:01:48.5]} 32... Nxf2 {[%clk 0:00:45.7]} 33. Kb6
{[%clk 0:01:46.8]} 33... h5 {[%clk 0:00:39.5]} 34. Kc6 {[%clk 0:01:43.7]} 34...
Kh7 {[%clk 0:00:39.7]} 35. Kd7 {[%clk 0:01:42.9]} 35... Ng4 {[%clk 0:00:40.6]}
36. h3 {[%clk 0:01:41.2]} 36... Ne5+ {[%clk 0:00:41.4]} 37. Bxe5 {[%clk
0:01:36.1]} 37... fxe5 {[%clk 0:00:43.3]} 38. Bc2 {[%clk 0:01:36.2]} 38... Kg6
{[%clk 0:00:36]} 39. Ke6 {[%clk 0:01:28.7]} 39... Kg5 {[%clk 0:00:30.6]} 40. h4+
{[%clk 0:01:24.2]} 40... Kg4 {[%clk 0:00:31.3]} 41. Bd1+ {[%clk 0:01:24.9]}
41... Kh3 {[%clk 0:00:31.4]} 42. Bxh5 {[%clk 0:01:26]} 42... e4 {[%clk
0:00:30.8]} 43. Kd5 {[%clk 0:01:26.7]} 43... Bb4 {[%clk 0:00:27.7]} 44. Kxe4
{[%clk 0:01:25.8]} 44... Be1 {[%clk 0:00:28.8]} 45. Kf3 {[%clk 0:01:25.5]} 45...
Ba5 {[%clk 0:00:26.2]} 46. Bg4+ {[%clk 0:01:24.6]} 46... Kh2 {[%clk 0:00:26.8]}
47. Nxg7 {[%clk 0:01:26.5]} 47... Bd8 {[%clk 0:00:24.1]} 48. Ne6 {[%clk
0:01:26.7]} 48... Be7 {[%clk 0:00:24.8]} 49. h5 {[%clk 0:01:27.7]} 49... Bd6
{[%clk 0:00:25.9]} 50. h6 {[%clk 0:01:28.8]} 50... Bxg3 {[%clk 0:00:27.1]} 51.
Nf4 {[%clk 0:01:27.7]} 1-0

[Event "*** Titled Tuesday Blitz"]
[Site "Chess.com"]
[Date "2019.10.01"]
[Round "2"]
[White "eljanov"]
[Black "FMJoseHerrera"]
[Result "1-0"]
[WhiteElo "2794"]
[BlackElo "2516"]
[TimeControl "180+2"]
[EndTime "13:22:18 PDT"]
[Termination "eljanov won by resignation"]

1. Nf3 {[%clk 0:03:01.9]} 1... c5 {[%clk 0:02:58]} 2. c4 {[%clk 0:03:01.9]} 2...
b6 {[%clk 0:02:57.5]} 3. d4 {[%clk 0:03:01.5]} 3... cxd4 {[%clk 0:02:58.5]} 4.
Nxd4 {[%clk 0:03:03.4]} 4... Bb7 {[%clk 0:03:00]} 5. f3 {[%clk 0:03:05.3]} 5...
e6 {[%clk 0:03:00.7]} 6. Nc3 {[%clk 0:02:59.7]} 6... a6 {[%clk 0:03:01.5]} 7. e4
{[%clk 0:03:00.3]} 7... Qc7 {[%clk 0:03:02.4]} 8. Be3 {[%clk 0:03:01]} 8... d6
{[%clk 0:03:02.5]} 9. Be2 {[%clk 0:02:59.6]} 9... Nd7 {[%clk 0:03:03.4]} 10. O-O
{[%clk 0:03:00.5]} 10... h5 {[%clk 0:03:00.3]} 11. Rc1 {[%clk 0:03:00.6]} 11...
Ngf6 {[%clk 0:03:00.7]} 12. b4 {[%clk 0:02:52.5]} 12... Be7 {[%clk 0:02:50.6]}
13. Qe1 {[%clk 0:02:48.3]} 13... h4 {[%clk 0:02:50.1]} 14. Qf2 {[%clk
0:02:49.1]} 14... Rc8 {[%clk 0:02:49.4]} 15. Nb3 {[%clk 0:02:38.8]} 15... Bd8
{[%clk 0:02:41.4]} 16. a4 {[%clk 0:02:39.1]} 16... h3 {[%clk 0:02:06.9]} 17. g3
{[%clk 0:02:37]} 17... Ne5 {[%clk 0:01:35.8]} 18. a5 {[%clk 0:02:27.7]} 18...
Qe7 {[%clk 0:01:33.8]} 19. axb6 {[%clk 0:02:18.8]} 19... Nxc4 {[%clk 0:01:34.3]}
20. Bxc4 {[%clk 0:02:15.3]} 20... Rxc4 {[%clk 0:01:36.2]} 21. b5 {[%clk
0:02:01.6]} 21... O-O {[%clk 0:01:14.6]} 22. Na5 {[%clk 0:01:57.6]} 22... Rb4
{[%clk 0:01:15.5]} 23. Nc6 {[%clk 0:01:46.6]} 23... Bxc6 {[%clk 0:01:10.6]} 24.
bxc6 {[%clk 0:01:48]} 24... Rc4 {[%clk 0:00:33.9]} 25. Ne2 {[%clk 0:01:47.2]}
25... d5 {[%clk 0:00:29.1]} 26. Rxc4 {[%clk 0:01:42]} 26... dxc4 {[%clk
0:00:31]} 27. Bc5 {[%clk 0:01:40.4]} 27... Qe8 {[%clk 0:00:29.3]} 28. c7 {[%clk
0:01:38.8]} 28... Bxc7 {[%clk 0:00:30.7]} 29. bxc7 {[%clk 0:01:39.5]} 29... Qc6
{[%clk 0:00:32.6]} 30. Bxf8 {[%clk 0:01:39.6]} 30... Kxf8 {[%clk 0:00:34.5]} 31.
Qa7 {[%clk 0:01:38.2]} 31... Ne8 {[%clk 0:00:34.7]} 32. Rd1 {[%clk 0:01:29]}
32... Nxc7 {[%clk 0:00:25.8]} 33. Nc3 {[%clk 0:01:29.2]} 33... Ne8 {[%clk
0:00:25.5]} 34. Kf2 {[%clk 0:01:12.2]} 34... g5 {[%clk 0:00:24.8]} 35. Qd4
{[%clk 0:01:11.7]} 35... g4 {[%clk 0:00:24.3]} 36. fxg4 {[%clk 0:01:11.3]} 36...
Qb7 {[%clk 0:00:22.4]} 37. g5 {[%clk 0:01:11.5]} 37... Kg8 {[%clk 0:00:20.8]}
38. g6 {[%clk 0:01:06.8]} 38... fxg6 {[%clk 0:00:21.4]} 39. Qd8 {[%clk
0:01:01.3]} 39... Qb2+ {[%clk 0:00:17.5]} 40. Rd2 {[%clk 0:01:01.2]} 40... Qxc3
{[%clk 0:00:19.4]} 41. Qxe8+ {[%clk 0:01:02]} 41... Kh7 {[%clk 0:00:21.3]} 42.
Rd7+ {[%clk 0:00:50.7]} 42... Kh6 {[%clk 0:00:22.4]} 43. Qf8+ {[%clk 0:00:51.6]}
43... Kg5 {[%clk 0:00:22.9]} 44. Qf4+ {[%clk 0:00:52]} 1-0